[Event "Early-Titled-Tuesday-Blitz-August-29-2023"]
[Site "Chess.com"]
[Date "2023.08.29"]
[Round "10"]
[White "GMForgacs"]
[Black "ahkashefi2800"]
[Result "1-0"]
[WhiteElo "2449"]
[BlackElo "2569"]
[TimeControl "180+1"]
[EndTime "9:49:18 PDT"]
[Termination "GMForgacs won by checkmate"]

1. e4 {[%clk 0:03:00.9]} 1... c5 {[%clk 0:02:59.5]} 2. Nf3 {[%clk 0:03:00.9]}
2... d6 {[%clk 0:02:59.4]} 3. d4 {[%clk 0:03:01.8]} 3... cxd4 {[%clk 0:02:59.5]}
4. Nxd4 {[%clk 0:03:02.7]} 4... a6 {[%clk 0:03:00.1]} 5. f3 {[%clk 0:02:57.4]}
5... Nf6 {[%clk 0:03:00.4]} 6. Nc3 {[%clk 0:02:56.4]} 6... g6 {[%clk 0:03:00.5]}
7. Be3 {[%clk 0:02:56.1]} 7... Bg7 {[%clk 0:03:01.4]} 8. Qd2 {[%clk 0:02:56.8]}
8... O-O {[%clk 0:03:01.8]} 9. g4 {[%clk 0:02:56.9]} 9... b5 {[%clk 0:03:02]}
10. O-O-O {[%clk 0:02:57.4]} 10... b4 {[%clk 0:02:55.6]} 11. Nd5 {[%clk
0:02:56.3]} 11... Nxd5 {[%clk 0:02:55]} 12. exd5 {[%clk 0:02:57.2]} 12... a5
{[%clk 0:02:55.1]} 13. h4 {[%clk 0:02:51]} 13... a4 {[%clk 0:02:46.8]} 14. h5
{[%clk 0:02:47.8]} 14... b3 {[%clk 0:02:42.1]} 15. cxb3 {[%clk 0:02:48.7]} 15...
axb3 {[%clk 0:02:42.2]} 16. a3 {[%clk 0:02:49.2]} 16... Nd7 {[%clk 0:02:24.8]}
17. Bh6 {[%clk 0:02:41.2]} 17... Bxd4 {[%clk 0:02:24.4]} 18. Qxd4 {[%clk
0:02:41.2]} 18... Qc7+ {[%clk 0:02:23.4]} 19. Bc4 {[%clk 0:02:31.4]} 19... Ne5
{[%clk 0:02:21.2]} 20. Bxf8 {[%clk 0:02:25.6]} 20... Kxf8 {[%clk 0:02:11.2]} 21.
hxg6 {[%clk 0:02:26]} 21... hxg6 {[%clk 0:02:08.2]} 22. Rh8+ {[%clk 0:02:05.5]}
22... Kg7 {[%clk 0:02:07.9]} 23. Rdh1 {[%clk 0:02:06.4]} 23... Ra4 {[%clk
0:01:58.7]} 24. R1h7+ {[%clk 0:01:52.5]} 24... Kf6 {[%clk 0:01:59]} 25. Qf4+
{[%clk 0:01:53.4]} 25... Bf5 {[%clk 0:01:59]} 26. g5# {[%clk 0:01:54.3]} 1-0

[Event "Early-Titled-Tuesday-Blitz-August-29-2023"]
[Site "Chess.com"]
[Date "2023.08.29"]
[Round "10"]
[White "ural58"]
[Black "Kildepiotr"]
[Result "0-1"]
[WhiteElo "2511"]
[BlackElo "2668"]
[TimeControl "180+1"]
[EndTime "9:49:25 PDT"]
[Termination "Kildepiotr won by resignation"]

1. e4 {[%clk 0:02:28.6]} 1... g6 {[%clk 0:02:59.6]} 2. d4 {[%clk 0:02:27.9]}
2... Bg7 {[%clk 0:03:00.2]} 3. Nc3 {[%clk 0:02:27.8]} 3... c6 {[%clk 0:03:00.8]}
4. h4 {[%clk 0:02:25.8]} 4... h5 {[%clk 0:03:00.4]} 5. Nf3 {[%clk 0:02:24.7]}
5... d5 {[%clk 0:03:00.4]} 6. Ng5 {[%clk 0:02:24.7]} 6... Nh6 {[%clk 0:02:57.2]}
7. f3 {[%clk 0:02:23.6]} 7... dxe4 {[%clk 0:02:56.5]} 8. Be3 {[%clk 0:02:20.5]}
8... Nf5 {[%clk 0:02:53]} 9. Bg1 {[%clk 0:02:01.9]} 9... Bxd4 {[%clk 0:02:45.7]}
10. Ncxe4 {[%clk 0:02:00.5]} 10... Qa5+ {[%clk 0:02:35.7]} 11. c3 {[%clk
0:01:50.5]} 11... Bxg1 {[%clk 0:02:35.4]} 12. Rxg1 {[%clk 0:01:50.6]} 12... Nd7
{[%clk 0:02:26.1]} 13. Qb3 {[%clk 0:01:46.4]} 13... O-O {[%clk 0:02:11]} 14.
O-O-O {[%clk 0:01:45.1]} 14... Nc5 {[%clk 0:02:05.7]} 15. Nxc5 {[%clk
0:01:33.9]} 15... Qxc5 {[%clk 0:02:06.6]} 16. Bd3 {[%clk 0:01:33.2]} 16... Nxh4
{[%clk 0:02:02.4]} 17. g4 {[%clk 0:01:27.1]} 17... Qxg5+ {[%clk 0:02:01.9]} 0-1

[Event "Early-Titled-Tuesday-Blitz-August-29-2023"]
[Site "Chess.com"]
[Date "2023.08.29"]
[Round "10"]
[White "Goi_Manne"]
[Black "Laico"]
[Result "0-1"]
[WhiteElo "2308"]
[BlackElo "2420"]
[TimeControl "180+1"]
[EndTime "9:49:47 PDT"]
[Termination "Laico won by resignation"]

1. e4 {[%clk 0:03:00.4]} 1... e6 {[%clk 0:02:57.9]} 2. d3 {[%clk 0:02:58.6]}
2... d5 {[%clk 0:02:58.5]} 3. Nd2 {[%clk 0:02:58.5]} 3... Nf6 {[%clk 0:02:58.1]}
4. Ngf3 {[%clk 0:02:56]} 4... Bc5 {[%clk 0:02:56]} 5. e5 {[%clk 0:02:50.1]} 5...
Nfd7 {[%clk 0:02:55.6]} 6. d4 {[%clk 0:02:49.9]} 6... Bb6 {[%clk 0:02:56]} 7. c3
{[%clk 0:02:49.7]} 7... c5 {[%clk 0:02:56.3]} 8. Be2 {[%clk 0:02:47.8]} 8... Nc6
{[%clk 0:02:56.8]} 9. Nb3 {[%clk 0:02:43.3]} 9... a5 {[%clk 0:02:54.5]} 10. a4
{[%clk 0:02:39.2]} 10... O-O {[%clk 0:02:49.8]} 11. O-O {[%clk 0:02:38.8]} 11...
f6 {[%clk 0:02:49.1]} 12. exf6 {[%clk 0:02:35.7]} 12... Qxf6 {[%clk 0:02:49.2]}
13. Bg5 {[%clk 0:02:27.7]} 13... Qg6 {[%clk 0:02:48.4]} 14. Qd2 {[%clk 0:02:21]}
14... cxd4 {[%clk 0:02:23.3]} 15. cxd4 {[%clk 0:02:19.4]} 15... Nf6 {[%clk
0:02:23.2]} 16. Bxf6 {[%clk 0:02:12.6]} 16... Rxf6 {[%clk 0:02:22.5]} 17. Ne5
{[%clk 0:02:09.3]} 17... Nxe5 {[%clk 0:02:21.2]} 18. dxe5 {[%clk 0:02:10.2]}
18... Rf7 {[%clk 0:02:13.8]} 19. Nd4 {[%clk 0:02:05.3]} 19... Bd7 {[%clk
0:01:59.4]} 20. Bb5 {[%clk 0:01:51.7]} 20... Raf8 {[%clk 0:01:47.6]} 21. Bxd7
{[%clk 0:01:45.4]} 21... Rxd7 {[%clk 0:01:48.5]} 22. Rac1 {[%clk 0:01:40.3]}
22... Rdf7 {[%clk 0:01:47.8]} 23. Nf3 {[%clk 0:01:33.1]} 23... Rxf3 {[%clk
0:01:47.4]} 0-1

[Event "Early-Titled-Tuesday-Blitz-August-29-2023"]
[Site "Chess.com"]
[Date "2023.08.29"]
[Round "10"]
[White "Lady_Nika"]
[Black "ChessArchitect64"]
[Result "1-0"]
[WhiteElo "2472"]
[BlackElo "2266"]
[TimeControl "180+1"]
[EndTime "9:49:52 PDT"]
[Termination "Lady_Nika won by checkmate"]

1. e4 {[%clk 0:03:00.1]} 1... c5 {[%clk 0:02:56.1]} 2. Nc3 {[%clk 0:02:59.9]}
2... e6 {[%clk 0:02:49.6]} 3. g3 {[%clk 0:03:00.1]} 3... Nc6 {[%clk 0:02:47]} 4.
Bg2 {[%clk 0:03:00.1]} 4... d6 {[%clk 0:02:42.2]} 5. d3 {[%clk 0:03:00]} 5...
Nf6 {[%clk 0:02:32.8]} 6. f4 {[%clk 0:03:00.1]} 6... Be7 {[%clk 0:02:13.5]} 7.
Nf3 {[%clk 0:02:59.5]} 7... O-O {[%clk 0:02:10.6]} 8. O-O {[%clk 0:02:59.4]}
8... a6 {[%clk 0:02:10.5]} 9. Rb1 {[%clk 0:02:59.6]} 9... Qc7 {[%clk 0:02:10.4]}
10. Ne2 {[%clk 0:02:59.7]} 10... Rb8 {[%clk 0:02:10.1]} 11. h3 {[%clk
0:03:00.1]} 11... b5 {[%clk 0:02:10.2]} 12. g4 {[%clk 0:02:59.6]} 12... Nd7
{[%clk 0:02:10.3]} 13. Be3 {[%clk 0:02:58.3]} 13... Bb7 {[%clk 0:02:09.7]} 14.
f5 {[%clk 0:02:57.3]} 14... Nde5 {[%clk 0:02:08.5]} 15. Nxe5 {[%clk 0:02:56.9]}
15... dxe5 {[%clk 0:02:07.5]} 16. g5 {[%clk 0:02:56.5]} 16... exf5 {[%clk
0:02:02.8]} 17. exf5 {[%clk 0:02:54.8]} 17... f6 {[%clk 0:02:01.3]} 18. gxf6
{[%clk 0:02:54.9]} 18... Bxf6 {[%clk 0:02:01]} 19. Bxc5 {[%clk 0:02:54.2]} 19...
Rfd8 {[%clk 0:01:59.7]} 20. Be3 {[%clk 0:02:48.4]} 20... Nd4 {[%clk 0:01:59.3]}
21. Nxd4 {[%clk 0:02:48.5]} 21... exd4 {[%clk 0:01:55.7]} 22. Bf4 {[%clk
0:02:48.6]} 22... Be5 {[%clk 0:01:54.6]} 23. Bxe5 {[%clk 0:02:47.3]} 23... Qxe5
{[%clk 0:01:55.5]} 24. Qg4 {[%clk 0:02:44.4]} 24... Bxg2 {[%clk 0:01:53.7]} 25.
Qxg2 {[%clk 0:02:44]} 25... Re8 {[%clk 0:01:52.1]} 26. f6 {[%clk 0:02:43.6]}
26... Qe3+ {[%clk 0:01:39.8]} 27. Kh1 {[%clk 0:02:40.8]} 27... Rb7 {[%clk
0:01:32.7]} 28. Qxb7 {[%clk 0:02:36.7]} 28... Qxh3+ {[%clk 0:01:31.2]} 29. Kg1
{[%clk 0:02:36.9]} 29... Re3 {[%clk 0:01:04.5]} 30. Qxg7# {[%clk 0:02:35.9]} 1-0

[Event "Early-Titled-Tuesday-Blitz-August-29-2023"]
[Site "Chess.com"]
[Date "2023.08.29"]
[Round "10"]
[White "AttilaTurzo"]
[Black "jerry_77"]
[Result "0-1"]
[WhiteElo "2523"]
[BlackElo "2641"]
[TimeControl "180+1"]
[EndTime "9:50:21 PDT"]
[Termination "jerry_77 won by resignation"]

1. d4 {[%clk 0:03:00.9]} 1... Nf6 {[%clk 0:02:56.9]} 2. Nf3 {[%clk 0:03:01.3]}
2... e6 {[%clk 0:02:57]} 3. Bf4 {[%clk 0:03:00.5]} 3... d5 {[%clk 0:02:57.5]} 4.
e3 {[%clk 0:03:00.5]} 4... Bd6 {[%clk 0:02:57.9]} 5. Nbd2 {[%clk 0:02:59.9]}
5... O-O {[%clk 0:02:57.2]} 6. Bd3 {[%clk 0:02:59.9]} 6... c5 {[%clk 0:02:57.4]}
7. c3 {[%clk 0:02:58.3]} 7... Qc7 {[%clk 0:02:57.7]} 8. Bxd6 {[%clk 0:02:49.4]}
8... Qxd6 {[%clk 0:02:58.6]} 9. O-O {[%clk 0:02:49.8]} 9... Nbd7 {[%clk
0:02:58.6]} 10. Qe2 {[%clk 0:02:43.1]} 10... cxd4 {[%clk 0:02:54.8]} 11. exd4
{[%clk 0:02:37.1]} 11... b6 {[%clk 0:02:53.3]} 12. Ne5 {[%clk 0:02:33.8]} 12...
Bb7 {[%clk 0:02:52.7]} 13. f4 {[%clk 0:02:32.5]} 13... Qe7 {[%clk 0:02:52.7]}
14. Rf3 {[%clk 0:02:31.7]} 14... g6 {[%clk 0:02:49.8]} 15. Rh3 {[%clk
0:02:21.8]} 15... Ne8 {[%clk 0:02:44.5]} 16. g4 {[%clk 0:02:18.7]} 16... Ng7
{[%clk 0:02:41.8]} 17. Ndf3 {[%clk 0:02:14.1]} 17... Nf6 {[%clk 0:02:40.1]} 18.
g5 {[%clk 0:02:05]} 18... Ne4 {[%clk 0:02:38.8]} 19. Nd2 {[%clk 0:01:57.3]}
19... f5 {[%clk 0:02:30.5]} 20. Bxe4 {[%clk 0:01:45.8]} 20... fxe4 {[%clk
0:02:30.3]} 21. Rf1 {[%clk 0:01:40.4]} 21... Nh5 {[%clk 0:02:17.3]} 22. Rxh5
{[%clk 0:01:31.4]} 22... gxh5 {[%clk 0:02:17.4]} 23. Qxh5 {[%clk 0:01:32.3]}
23... e3 {[%clk 0:02:12]} 24. Nb3 {[%clk 0:01:16.1]} 24... Ba6 {[%clk
0:02:07.6]} 25. Re1 {[%clk 0:01:07.9]} 25... e2 {[%clk 0:02:07.6]} 26. Ng4
{[%clk 0:01:05.6]} 26... Rxf4 {[%clk 0:02:02.4]} 27. Nf6+ {[%clk 0:01:04.8]}
27... Kh8 {[%clk 0:01:57.4]} 28. Nc1 {[%clk 0:01:03.2]} 28... Rf1+ {[%clk
0:01:56]} 0-1

[Event "Early-Titled-Tuesday-Blitz-August-29-2023"]
[Site "Chess.com"]
[Date "2023.08.29"]
[Round "10"]
[White "sorch29"]
[Black "Magila31"]
[Result "1-0"]
[WhiteElo "2381"]
[BlackElo "2474"]
[TimeControl "180+1"]
[EndTime "9:50:26 PDT"]
[Termination "sorch29 won by resignation"]

1. d4 {[%clk 0:03:00.9]} 1... g6 {[%clk 0:02:59.2]} 2. c4 {[%clk 0:02:59]} 2...
Bg7 {[%clk 0:02:58.7]} 3. Nc3 {[%clk 0:02:59.9]} 3... d6 {[%clk 0:02:58.3]} 4.
e4 {[%clk 0:02:59.2]} 4... Nc6 {[%clk 0:02:57.2]} 5. Be3 {[%clk 0:02:55.9]} 5...
e5 {[%clk 0:02:55.1]} 6. Nge2 {[%clk 0:02:49.7]} 6... exd4 {[%clk 0:02:50]} 7.
Nxd4 {[%clk 0:02:49.3]} 7... Nf6 {[%clk 0:02:50.1]} 8. Be2 {[%clk 0:02:49]} 8...
O-O {[%clk 0:02:49]} 9. O-O {[%clk 0:02:49.2]} 9... Re8 {[%clk 0:02:48.7]} 10.
f3 {[%clk 0:02:49.8]} 10... Nh5 {[%clk 0:02:48.9]} 11. Qd2 {[%clk 0:02:49]}
11... Nf4 {[%clk 0:02:30.6]} 12. Rfd1 {[%clk 0:02:47.4]} 12... Nxd4 {[%clk
0:02:26]} 13. Bxd4 {[%clk 0:02:46.2]} 13... Qg5 {[%clk 0:02:23.9]} 14. Bf1
{[%clk 0:02:42.8]} 14... Bxd4+ {[%clk 0:01:32.1]} 15. Qxd4 {[%clk 0:02:42.6]}
15... h5 {[%clk 0:01:27.8]} 16. Nd5 {[%clk 0:02:34]} 16... c5 {[%clk 0:01:17.3]}
17. Qd2 {[%clk 0:02:10]} 17... Nh3+ {[%clk 0:00:41.9]} 18. Kh1 {[%clk
0:02:09.2]} 18... Qxd2 {[%clk 0:00:30.8]} 19. Rxd2 {[%clk 0:02:10.1]} 1-0

[Event "Early-Titled-Tuesday-Blitz-August-29-2023"]
[Site "Chess.com"]
[Date "2023.08.29"]
[Round "10"]
[White "Henryk_S"]
[Black "kidagent"]
[Result "1-0"]
[WhiteElo "2138"]
[BlackElo "2264"]
[TimeControl "180+1"]
[EndTime "9:50:55 PDT"]
[Termination "Henryk_S won by resignation"]

1. e4 {[%clk 0:03:00.9]} 1... c5 {[%clk 0:02:59.7]} 2. Nf3 {[%clk 0:02:59.5]}
2... d6 {[%clk 0:02:59.8]} 3. c3 {[%clk 0:02:58.1]} 3... Nf6 {[%clk 0:02:59.2]}
4. Be2 {[%clk 0:02:54.8]} 4... Nc6 {[%clk 0:02:58.1]} 5. d4 {[%clk 0:02:54.5]}
5... cxd4 {[%clk 0:02:55.6]} 6. cxd4 {[%clk 0:02:54.4]} 6... g6 {[%clk 0:02:55]}
7. Nc3 {[%clk 0:02:54]} 7... Bg7 {[%clk 0:02:54.6]} 8. O-O {[%clk 0:02:53.5]}
8... O-O {[%clk 0:02:54.7]} 9. h3 {[%clk 0:02:53.9]} 9... e5 {[%clk 0:02:52.4]}
10. dxe5 {[%clk 0:02:51.7]} 10... dxe5 {[%clk 0:02:52.2]} 11. Qxd8 {[%clk
0:02:46.6]} 11... Rxd8 {[%clk 0:02:51.2]} 12. Bg5 {[%clk 0:02:45]} 12... h6
{[%clk 0:02:48.1]} 13. Bxf6 {[%clk 0:02:43.9]} 13... Bxf6 {[%clk 0:02:49]} 14.
Nd5 {[%clk 0:02:44]} 14... Bg7 {[%clk 0:02:48.7]} 15. Rac1 {[%clk 0:02:35.5]}
15... Be6 {[%clk 0:02:47.9]} 16. Nc7 {[%clk 0:02:29.5]} 16... Bxa2 {[%clk
0:02:43.3]} 17. Nxa8 {[%clk 0:02:28]} 17... Rxa8 {[%clk 0:02:44.2]} 18. Bc4
{[%clk 0:02:22]} 18... Bxc4 {[%clk 0:02:44]} 19. Rxc4 {[%clk 0:02:21.6]} 19...
Rd8 {[%clk 0:02:44.7]} 20. b4 {[%clk 0:02:14.9]} 20... a6 {[%clk 0:02:43.3]} 21.
Rb1 {[%clk 0:02:13.1]} 21... Nd4 {[%clk 0:02:21.7]} 22. Rc7 {[%clk 0:01:51.5]}
22... b5 {[%clk 0:02:15.4]} 23. Ra7 {[%clk 0:01:43]} 23... Nxf3+ {[%clk
0:02:01.5]} 24. gxf3 {[%clk 0:01:42.6]} 24... Bf8 {[%clk 0:02:02.4]} 25. Rxa6
{[%clk 0:01:35.4]} 25... Rd4 {[%clk 0:02:02]} 26. Rb6 {[%clk 0:01:22.3]} 26...
Bxb4 {[%clk 0:01:55.7]} 27. Rxb5 {[%clk 0:01:20.4]} 27... Bd6 {[%clk 0:01:55.6]}
28. Rd5 {[%clk 0:01:16.9]} 28... Rxd5 {[%clk 0:01:55.9]} 29. exd5 {[%clk
0:01:17]} 29... Kf8 {[%clk 0:01:56.6]} 30. Rb7 {[%clk 0:01:12.6]} 30... Ke8
{[%clk 0:01:54.3]} 31. Kf1 {[%clk 0:01:12.2]} 31... f5 {[%clk 0:01:53.3]} 32.
Ke2 {[%clk 0:01:11]} 32... Kd8 {[%clk 0:01:45]} 33. Rg7 {[%clk 0:01:06.2]} 33...
g5 {[%clk 0:01:44]} 34. Rg6 {[%clk 0:01:05.6]} 34... Bf8 {[%clk 0:01:43.6]} 35.
Rf6 {[%clk 0:01:04.4]} 35... f4 {[%clk 0:01:35]} 36. Rxf8+ {[%clk 0:01:03.1]}
1-0

[Event "Early-Titled-Tuesday-Blitz-August-29-2023"]
[Site "Chess.com"]
[Date "2023.08.29"]
[Round "10"]
[White "hurricane7791"]
[Black "regular_legs"]
[Result "0-1"]
[WhiteElo "2673"]
[BlackElo "2589"]
[TimeControl "180+1"]
[EndTime "9:51:07 PDT"]
[Termination "regular_legs won by resignation"]

1. d4 {[%clk 0:03:00.9]} 1... d5 {[%clk 0:02:56.7]} 2. c4 {[%clk 0:03:01]} 2...
e6 {[%clk 0:02:57]} 3. Nc3 {[%clk 0:03:00.2]} 3... a6 {[%clk 0:02:53.7]} 4. c5
{[%clk 0:02:56.9]} 4... b6 {[%clk 0:02:51.7]} 5. cxb6 {[%clk 0:02:57.8]} 5...
cxb6 {[%clk 0:02:45.8]} 6. Nf3 {[%clk 0:02:57.9]} 6... Bd6 {[%clk 0:02:45]} 7.
Bg5 {[%clk 0:02:57.8]} 7... Ne7 {[%clk 0:02:44.3]} 8. e3 {[%clk 0:02:58.4]} 8...
Nbc6 {[%clk 0:02:42.2]} 9. Bd3 {[%clk 0:02:58.5]} 9... O-O {[%clk 0:02:38.5]}
10. Rc1 {[%clk 0:02:58.9]} 10... Bd7 {[%clk 0:02:36.8]} 11. a3 {[%clk
0:02:58.8]} 11... Qb8 {[%clk 0:02:33]} 12. Qd2 {[%clk 0:02:50.4]} 12... Rc8
{[%clk 0:02:32.2]} 13. e4 {[%clk 0:02:46.4]} 13... dxe4 {[%clk 0:02:24.2]} 14.
Nxe4 {[%clk 0:02:47.3]} 14... Nd5 {[%clk 0:02:20.3]} 15. Nxd6 {[%clk 0:02:46.1]}
15... Qxd6 {[%clk 0:02:21]} 16. O-O {[%clk 0:02:46.5]} 16... Nce7 {[%clk
0:02:07.4]} 17. Bh4 {[%clk 0:02:42.5]} 17... Bb5 {[%clk 0:01:46.7]} 18. Bg3
{[%clk 0:02:39.4]} 18... Qd8 {[%clk 0:01:46.7]} 19. Bxb5 {[%clk 0:02:36.3]}
19... axb5 {[%clk 0:01:47.6]} 20. Ne5 {[%clk 0:02:36.9]} 20... Rxc1 {[%clk
0:01:44.8]} 21. Rxc1 {[%clk 0:02:35.4]} 21... Rc8 {[%clk 0:01:45.3]} 22. f3
{[%clk 0:02:33.5]} 22... f6 {[%clk 0:01:37.8]} 23. Nd3 {[%clk 0:02:32.1]} 23...
Rc4 {[%clk 0:01:34.8]} 24. Bf2 {[%clk 0:02:31.3]} 24... Kf7 {[%clk 0:01:32.5]}
25. Re1 {[%clk 0:02:27.3]} 25... Qc8 {[%clk 0:01:32.3]} 26. Qe2 {[%clk
0:02:27.9]} 26... Rc2 {[%clk 0:01:30.3]} 27. Qe4 {[%clk 0:02:28.4]} 27... Ng6
{[%clk 0:01:26]} 28. h4 {[%clk 0:02:27.1]} 28... h5 {[%clk 0:01:24]} 29. g4
{[%clk 0:02:21]} 29... hxg4 {[%clk 0:01:22.7]} 30. h5 {[%clk 0:02:20.9]} 30...
Nf8 {[%clk 0:01:22.3]} 31. fxg4 {[%clk 0:02:20.6]} 31... Qc6 {[%clk 0:01:16.7]}
32. g5 {[%clk 0:02:14.6]} 32... Ne7 {[%clk 0:01:10.9]} 33. Qf4 {[%clk
0:02:09.2]} 33... Nf5 {[%clk 0:01:04.9]} 34. d5 {[%clk 0:01:53.4]} 34... Qxd5
{[%clk 0:01:00.5]} 35. Nb4 {[%clk 0:01:53.2]} 35... Qc4 {[%clk 0:01:00.7]} 36.
Qf3 {[%clk 0:01:47.8]} 36... Rc1 {[%clk 0:00:58.2]} 37. g6+ {[%clk 0:01:40.2]}
37... Kg8 {[%clk 0:00:56.6]} 38. Nc6 {[%clk 0:01:40.6]} 38... Qxc6 {[%clk
0:00:53.5]} 0-1

[Event "Early-Titled-Tuesday-Blitz-August-29-2023"]
[Site "Chess.com"]
[Date "2023.08.29"]
[Round "10"]
[White "Mesa_1"]
[Black "MusicCityMaster"]
[Result "0-1"]
[WhiteElo "2556"]
[BlackElo "2448"]
[TimeControl "180+1"]
[EndTime "9:51:11 PDT"]
[Termination "MusicCityMaster won by resignation"]

1. Nf3 {[%clk 0:02:55.1]} 1... Nf6 {[%clk 0:02:57.7]} 2. c4 {[%clk 0:02:51.9]}
2... g6 {[%clk 0:02:57.1]} 3. Nc3 {[%clk 0:02:52.3]} 3... Bg7 {[%clk 0:02:57]}
4. e4 {[%clk 0:02:52]} 4... d6 {[%clk 0:02:57.1]} 5. d4 {[%clk 0:02:52.5]} 5...
O-O {[%clk 0:02:57.8]} 6. Be2 {[%clk 0:02:53.3]} 6... e5 {[%clk 0:02:58.2]} 7.
O-O {[%clk 0:02:52.9]} 7... Nc6 {[%clk 0:02:58.6]} 8. d5 {[%clk 0:02:53.4]} 8...
Ne7 {[%clk 0:02:59.3]} 9. b4 {[%clk 0:02:54.1]} 9... Nh5 {[%clk 0:02:59]} 10.
Re1 {[%clk 0:02:51.8]} 10... f5 {[%clk 0:02:58.1]} 11. Ng5 {[%clk 0:02:45.5]}
11... Nf6 {[%clk 0:02:58.3]} 12. c5 {[%clk 0:02:39.6]} 12... h6 {[%clk
0:02:45.1]} 13. Ne6 {[%clk 0:02:38.6]} 13... Bxe6 {[%clk 0:02:45.3]} 14. dxe6
{[%clk 0:02:39.5]} 14... Nxe4 {[%clk 0:02:41.9]} 15. Nxe4 {[%clk 0:02:37.8]}
15... fxe4 {[%clk 0:02:42.8]} 16. cxd6 {[%clk 0:02:01.7]} 16... cxd6 {[%clk
0:02:43.7]} 17. b5 {[%clk 0:01:58.9]} 17... d5 {[%clk 0:02:20.5]} 18. Ba3 {[%clk
0:01:58.9]} 18... d4 {[%clk 0:02:18]} 19. Bc4 {[%clk 0:01:58.1]} 19... Rc8
{[%clk 0:02:04.7]} 20. Rc1 {[%clk 0:01:53.7]} 20... Rf4 {[%clk 0:01:44.9]} 21.
g3 {[%clk 0:01:48.1]} 21... Rf3 {[%clk 0:01:44.9]} 22. Bxe7 {[%clk 0:01:40.1]}
22... Qxe7 {[%clk 0:01:44.6]} 23. Rxe4 {[%clk 0:01:34.1]} 23... Rcf8 {[%clk
0:01:37.6]} 24. Rc2 {[%clk 0:01:23.1]} 24... Kh7 {[%clk 0:01:37.3]} 25. Bd3
{[%clk 0:01:21.6]} 25... Qxe6 {[%clk 0:01:29]} 26. Kg2 {[%clk 0:01:13.9]} 26...
Qf6 {[%clk 0:01:14.7]} 27. Qe2 {[%clk 0:01:10.1]} 27... h5 {[%clk 0:01:07.3]}
28. Rc7 {[%clk 0:01:04.5]} 28... Rxf2+ {[%clk 0:01:06.4]} 0-1

[Event "Early-Titled-Tuesday-Blitz-August-29-2023"]
[Site "Chess.com"]
[Date "2023.08.29"]
[Round "10"]
[White "Tsyhanchuk_Stanislav"]
[Black "stepanosinovsky"]
[Result "1-0"]
[WhiteElo "2420"]
[BlackElo "2303"]
[TimeControl "180+1"]
[EndTime "9:51:11 PDT"]
[Termination "Tsyhanchuk_Stanislav won by resignation"]

1. c4 {[%clk 0:03:00.9]} 1... Nf6 {[%clk 0:02:56.1]} 2. Nc3 {[%clk 0:03:01]}
2... g6 {[%clk 0:02:57]} 3. d4 {[%clk 0:03:00.2]} 3... d6 {[%clk 0:02:57.5]} 4.
e4 {[%clk 0:03:00.7]} 4... Bg7 {[%clk 0:02:58.2]} 5. f4 {[%clk 0:03:01.3]} 5...
O-O {[%clk 0:02:58.8]} 6. Nf3 {[%clk 0:03:01.9]} 6... c5 {[%clk 0:02:59.4]} 7.
d5 {[%clk 0:03:02.5]} 7... e6 {[%clk 0:03:00]} 8. Be2 {[%clk 0:03:03.1]} 8...
exd5 {[%clk 0:03:00.5]} 9. exd5 {[%clk 0:03:04]} 9... b5 {[%clk 0:03:00.2]} 10.
cxb5 {[%clk 0:03:03.4]} 10... a6 {[%clk 0:02:59.7]} 11. O-O {[%clk 0:03:03.5]}
11... axb5 {[%clk 0:02:56.6]} 12. Bxb5 {[%clk 0:03:04.4]} 12... Bb7 {[%clk
0:02:53.9]} 13. f5 {[%clk 0:03:03.5]} 13... Nbd7 {[%clk 0:02:48.2]} 14. Bg5
{[%clk 0:02:58.1]} 14... Qb6 {[%clk 0:02:45.7]} 15. a4 {[%clk 0:02:47.7]} 15...
Ng4 {[%clk 0:02:33]} 16. Bxd7 {[%clk 0:02:38]} 16... Qxb2 {[%clk 0:02:19.3]} 17.
Rb1 {[%clk 0:02:34.3]} 17... Qxc3 {[%clk 0:02:16.8]} 18. Rxb7 {[%clk 0:02:29.2]}
18... h6 {[%clk 0:02:10.9]} 19. fxg6 {[%clk 0:02:23.7]} 19... hxg5 {[%clk
0:02:08.9]} 20. Bxg4 {[%clk 0:02:22]} 20... f5 {[%clk 0:02:07.8]} 21. Bh5 {[%clk
0:02:08.5]} 21... g4 {[%clk 0:02:03.3]} 22. Kh1 {[%clk 0:01:21.1]} 22... gxf3
{[%clk 0:01:56.6]} 23. Rxf3 {[%clk 0:01:21.7]} 23... Qd4 {[%clk 0:01:45.3]} 24.
Qxd4 {[%clk 0:01:06.7]} 24... Bxd4 {[%clk 0:01:37.9]} 25. g7 {[%clk 0:01:02.1]}
1-0

[Event "Early-Titled-Tuesday-Blitz-August-29-2023"]
[Site "Chess.com"]
[Date "2023.08.29"]
[Round "10"]
[White "zabivol_mc"]
[Black "LileKoridze"]
[Result "1-0"]
[WhiteElo "2599"]
[BlackElo "2357"]
[TimeControl "180+1"]
[EndTime "9:51:24 PDT"]
[Termination "zabivol_mc won by resignation"]

1. e4 {[%clk 0:03:00.9]} 1... c5 {[%clk 0:02:59.4]} 2. Nf3 {[%clk 0:03:00.8]}
2... d6 {[%clk 0:02:59.3]} 3. Bb5+ {[%clk 0:03:00.3]} 3... Nd7 {[%clk
0:02:59.2]} 4. O-O {[%clk 0:02:48.4]} 4... a6 {[%clk 0:02:59]} 5. Bxd7+ {[%clk
0:02:45.9]} 5... Bxd7 {[%clk 0:02:57.2]} 6. c3 {[%clk 0:02:46.2]} 6... Nf6
{[%clk 0:02:56.8]} 7. Re1 {[%clk 0:02:45.8]} 7... g6 {[%clk 0:02:55.8]} 8. d4
{[%clk 0:02:43.2]} 8... cxd4 {[%clk 0:02:55.3]} 9. cxd4 {[%clk 0:02:44.1]} 9...
Bg7 {[%clk 0:02:54.4]} 10. e5 {[%clk 0:02:31.1]} 10... dxe5 {[%clk 0:02:54.6]}
11. dxe5 {[%clk 0:02:31.2]} 11... Ng4 {[%clk 0:02:54.4]} 12. Nc3 {[%clk
0:02:26.1]} 12... O-O {[%clk 0:02:53.4]} 13. Bf4 {[%clk 0:02:24.7]} 13... Bc6
{[%clk 0:02:51.6]} 14. Nd4 {[%clk 0:02:17.3]} 14... Nh6 {[%clk 0:02:46.2]} 15.
Nxc6 {[%clk 0:02:14.3]} 15... bxc6 {[%clk 0:02:47.1]} 16. Qf3 {[%clk 0:02:13.4]}
16... Qb6 {[%clk 0:02:45.9]} 17. Rab1 {[%clk 0:02:03.2]} 17... Nf5 {[%clk
0:02:44.5]} 18. b4 {[%clk 0:01:53.3]} 18... e6 {[%clk 0:02:33]} 19. Na4 {[%clk
0:01:49.8]} 19... Qb5 {[%clk 0:02:24.3]} 20. Nc5 {[%clk 0:01:49.2]} 20... Rfd8
{[%clk 0:02:20.9]} 21. a4 {[%clk 0:01:43.3]} 21... Qc4 {[%clk 0:02:20.9]} 22.
Bg5 {[%clk 0:01:33.7]} 22... Rd5 {[%clk 0:02:13.2]} 23. Bf6 {[%clk 0:01:29.5]}
23... Bxf6 {[%clk 0:01:54.7]} 24. exf6 {[%clk 0:01:29.3]} 24... Qd4 {[%clk
0:01:51.4]} 25. h3 {[%clk 0:01:22.4]} 25... Qxf6 {[%clk 0:01:50.9]} 26. g4
{[%clk 0:01:22]} 26... Qg5 {[%clk 0:01:42.3]} 27. Ne4 {[%clk 0:01:21.2]} 27...
Qh4 {[%clk 0:01:36]} 28. gxf5 {[%clk 0:01:17.9]} 28... Rxf5 {[%clk 0:01:35.9]}
29. Qg4 {[%clk 0:01:15.6]} 29... Qh6 {[%clk 0:01:33.5]} 30. Rbd1 {[%clk
0:01:05.9]} 30... Rb8 {[%clk 0:01:29]} 31. Rd3 {[%clk 0:00:54.7]} 31... Kg7
{[%clk 0:01:28]} 32. Ng3 {[%clk 0:00:52.6]} 32... Rf4 {[%clk 0:01:24.9]} 33.
Nh5+ {[%clk 0:00:44.7]} 33... Qxh5 {[%clk 0:01:21.3]} 34. Qxf4 {[%clk 0:00:45]}
1-0